Workbook

Sheet Gryn. pinigų srautas per 12 mėn
A2: Grynųjų pinigų srautas per dvylika mėnesių | O2: Finansinių metų pradžia: | P2: 2013-07-01
A3: Įmonės pavadinimas
A4: Adresas, miestas, valstybė, pašto kodas
A5: Telefonas, el. paštas, svetainė
B7: Pradžia | C7: =FinansiniaiMetai -> 2013-07-01 | D7: =DATE(YEAR(C7),MONTH(C7)+1,1) -> 2013-08-01 | E7: =DATE(YEAR(D7),MONTH(D7)+1,1) -> 2013-09-01 | F7: 2013-10-01 | G7: 2013-11-01 | H7: 2013-12-01 | I7: 2014-01-01 | J7: 2014-02-01 | K7: 2014-03-01 | L7: 2014-04-01 | M7: 2014-05-01 | N7: 2014-06-01 | O7: Mėnesio vidurkis | P7: Apžvalga
A8: Grynųjų pinigų suvestinė
A9: Turimi grynieji pinigai (mėnesio pradžioje) | B9: 55,000 | C9: =IF(Įplaukos[[#Totals],[3stulpelis]]+Sumokėta[[#Totals],[3stulpelis]]=0,"",B11) -> 67,593 | D9: =IF(Įplaukos[[#Totals],[4stulpelis]]+Sumokėta[[#Totals],[4stulpelis]]=0,"",C11) -> 54,265 | E9: =IF(Įplaukos[[#Totals],[5stulpelis]]+Sumokėta[[#Totals],[5stulpelis]]=0,"",D11) -> 55,739 | F9: =IF(Įplaukos[[#Totals],[6stulpelis]]+Sumokėta[[#Totals],[6stulpelis]]=0,"",E11) -> 69,290 | G9: =IF(Įplaukos[[#Totals],[7stulpelis]]+Sumokėta[[#Totals],[7stulpelis]]=0,"",F11) -> 65,618 | H9: =IF(Įplaukos[[#Totals],[8stulpelis]]+Sumokėta[[#Totals],[8stulpelis]]=0,"",G11) ->  | I9: =IF(Įplaukos[[#Totals],[9stulpelis]]+Sumokėta[[#Totals],[9stulpelis]]=0,"",H11) ->  | J9: =IF(Įplaukos[[#Totals],[10stulpelis]]+Sumokėta[[#Totals],[10stulpelis]]=0,"",I11) ->  | K9: =IF(Įplaukos[[#Totals],[11stulpelis]]+Sumokėta[[#Totals],[11stulpelis]]=0,"",J11) ->  | L9: =IF(Įplaukos[[#Totals],[12stulpelis]]+Sumokėta[[#Totals],[12stulpelis]]=0,"",K11) ->  | M9: =IF(Įplaukos[[#Totals],[13stulpelis]]+Sumokėta[[#Totals],[13stulpelis]]=0,"",L11) ->  | N9: =IF(Įplaukos[[#Totals],[14stulpelis]]+Sumokėta[[#Totals],[14stulpelis]]=0,"",M11) ->  | O9: =IFERROR(AVERAGE(Suvestinė[[#This Row],[3stulpelis]:[14stulpelis]]),"") -> 62,501
A10: Esami grynieji pinigai (turimi + įplaukos, prieš juos išgryninant) | B10: =SUM(B9,Įplaukos[[#Totals],[2stulpelis]]) -> 67,593 | C10: =IF(C9="","",SUM(C9,Įplaukos[[#Totals],[3stulpelis]])) -> 76,065 | D10: =IF(D9="","",SUM(D9,Įplaukos[[#Totals],[4stulpelis]])) -> 83,301 | E10: =IF(E9="","",SUM(E9,Įplaukos[[#Totals],[5stulpelis]])) -> 91,032 | F10: =IF(F9="","",SUM(F9,Įplaukos[[#Totals],[6stulpelis]])) -> 89,662 | G10: =IF(G9="","",SUM(G9,Įplaukos[[#Totals],[7stulpelis]])) -> 76,200 | H10: =IF(H9="","",SUM(H9,Įplaukos[[#Totals],[8stulpelis]])) ->  | I10: =IF(I9="","",SUM(I9,Įplaukos[[#Totals],[9stulpelis]])) ->  | J10: =IF(J9="","",SUM(J9,Įplaukos[[#Totals],[10stulpelis]])) ->  | K10: =IF(K9="","",SUM(K9,Įplaukos[[#Totals],[11stulpelis]])) ->  | L10: =IF(L9="","",SUM(L9,Įplaukos[[#Totals],[12stulpelis]])) ->  | M10: =IF(M9="","",SUM(M9,Įplaukos[[#Totals],[13stulpelis]])) ->  | N10: =IF(N9="","",SUM(N9,Įplaukos[[#Totals],[14stulpelis]])) ->  | O10: =IFERROR(AVERAGE(Suvestinė[[#This Row],[3stulpelis]:[14stulpelis]]),"") -> 83,252
A11: Pinigų srauto pozicija (mėnesio pabaigoje) | B11: =(B10-Sumokėta[[#Totals],[2stulpelis]]) -> 67,593 | C11: =IFERROR(C10-Sumokėta[[#Totals],[3stulpelis]],"") -> 54,265 | D11: =IFERROR(D10-Sumokėta[[#Totals],[4stulpelis]],"") -> 55,739 | E11: =IFERROR(E10-Sumokėta[[#Totals],[5stulpelis]],"") -> 69,290 | F11: =IFERROR(F10-Sumokėta[[#Totals],[6stulpelis]],"") -> 65,618 | G11: =IFERROR(G10-Sumokėta[[#Totals],[7stulpelis]],"") -> 51,413 | H11: =IFERROR(H10-Sumokėta[[#Totals],[8stulpelis]],"") ->  | I11: =IFERROR(I10-Sumokėta[[#Totals],[9stulpelis]],"") ->  | J11: =IFERROR(J10-Sumokėta[[#Totals],[10stulpelis]],"") ->  | K11: =IFERROR(K10-Sumokėta[[#Totals],[11stulpelis]],"") ->  | L11: =IFERROR(L10-Sumokėta[[#Totals],[12stulpelis]],"") ->  | M11: =IFERROR(M10-Sumokėta[[#Totals],[13stulpelis]],"") ->  | N11: =IFERROR(N10-Sumokėta[[#Totals],[14stulpelis]],"") ->  | O11: =IFERROR(AVERAGE(Suvestinė[[#This Row],[3stulpelis]:[14stulpelis]]),"") -> 59,265
A13: Piniginės įplaukos
A14: Grynųjų pinigų pardavimas | B14: 5,616 | C14: 3,889 | D14: 24,411 | E14: 31,642 | F14: 14,647 | G14: 3,034 | O14: =IFERROR(AVERAGE(Įplaukos[[#This Row],[3stulpelis]:[14stulpelis]]),"") -> 15,525
A15: Pinigų gavimas iš kreditinių sąskaitų | B15: 4,498 | C15: 3,493 | D15: 1,987 | E15: 1,029 | F15: 2,911 | G15: 4,234 | O15: =IFERROR(AVERAGE(Įplaukos[[#This Row],[3stulpelis]:[14stulpelis]]),"") -> 2,731
A16: Paskola / kiti grynieji pinigai | B16: 2,479 | C16: 1,090 | D16: 2,638 | E16: 2,622 | F16: 2,814 | G16: 3,314 | O16: =IFERROR(AVERAGE(Įplaukos[[#This Row],[3stulpelis]:[14stulpelis]]),"") -> 2,496
A17: Bendroji piniginių įplaukų suma | B17: =SUBTOTAL(109,Įplaukos[2stulpelis]) -> 12,593 | C17: =SUBTOTAL(109,Įplaukos[3stulpelis]) -> 8,472 | D17: =SUBTOTAL(109,Įplaukos[4stulpelis]) -> 29,036 | E17: =SUBTOTAL(109,Įplaukos[5stulpelis]) -> 35,293 | F17: =SUBTOTAL(109,Įplaukos[6stulpelis]) -> 20,372 | G17: =SUBTOTAL(109,Įplaukos[7stulpelis]) -> 10,582 | H17: =SUBTOTAL(109,Įplaukos[8stulpelis]) -> 0 | I17: =SUBTOTAL(109,Įplaukos[9stulpelis]) -> 0 | J17: =SUBTOTAL(109,Įplaukos[10stulpelis]) -> 0 | K17: =SUBTOTAL(109,Įplaukos[11stulpelis]) -> 0 | L17: =SUBTOTAL(109,Įplaukos[12stulpelis]) -> 0 | M17: =SUBTOTAL(109,Įplaukos[13stulpelis]) -> 0 | N17: =SUBTOTAL(109,Įplaukos[14stulpelis]) -> 0 | O17: =IFERROR(AVERAGE(Įplaukos[[#Totals],[3stulpelis]:[14stulpelis]]),"") -> 8,646
A19: Sumokėti grynieji pinigai
A20: Pirkiniai (nurodyti) | C20: 521 | D20: 323 | E20: 274 | F20: 451 | G20: 104 | O20: =IFERROR(AVERAGE(Sumokėta[[#This Row],[3stulpelis]:[14stulpelis]]),"") -> 335
A21: Bruto darbo užmokesčiai (tikslus išėmimas) | C21: 10,572 | D21: 14,514 | E21: 10,561 | F21: 13,170 | G21: 12,478 | O21: =IFERROR(AVERAGE(Sumokėta[[#This Row],[3stulpelis]:[14stulpelis]]),"") -> 12,259
A22: Priemonės (biuro ir veikl.) | C22: 250 | D22: 428 | E22: 165 | F22: 1,168 | G22: 345 | O22: =IFERROR(AVERAGE(Sumokėta[[#This Row],[3stulpelis]:[14stulpelis]]),"") -> 471
A23: Remontas ir priežiūra | C23: 0 | D23: 2,200 | E23: 163 | F23: 67 | G23: 0 | O23: =IFERROR(AVERAGE(Sumokėta[[#This Row],[3stulpelis]:[14stulpelis]]),"") -> 486
A24: Reklama | C24: 1,100 | D24: 625 | E24: 1,356 | F24: 0 | G24: 2,560 | O24: =IFERROR(AVERAGE(Sumokėta[[#This Row],[3stulpelis]:[14stulpelis]]),"") -> 1,128
A25: Nuoma | C25: 3,500 | D25: 3,500 | E25: 3,500 | F25: 3,500 | G25: 3,500 | O25: =IFERROR(AVERAGE(Sumokėta[[#This Row],[3stulpelis]:[14stulpelis]]),"") -> 3,500
A26: Komunalinės paslaugos | C26: 285 | D26: 318 | E26: 151 | F26: 134 | G26: 228 | O26: =IFERROR(AVERAGE(Sumokėta[[#This Row],[3stulpelis]:[14stulpelis]]),"") -> 223
A27: Kita (nurodyti) | C27: 123 | D27: 234 | E27: 123 | F27: 234 | G27: 123 | O27: =IFERROR(AVERAGE(Sumokėta[[#This Row],[3stulpelis]:[14stulpelis]]),"") -> 167
A28: Pagrindinės paskolos sumos mokėjimas | C28: 4,000 | D28: 4,000 | E28: 4,000 | F28: 4,000 | G28: 4,000 | O28: =IFERROR(AVERAGE(Sumokėta[[#This Row],[3stulpelis]:[14stulpelis]]),"") -> 4,000
A29: Kapitalo pirkimas (nurodyti) | C29: 679 | D29: 700 | E29: 679 | F29: 650 | G29: 679 | O29: =IFERROR(AVERAGE(Sumokėta[[#This Row],[3stulpelis]:[14stulpelis]]),"") -> 677
A30: Kitos veiklos pradžios išlaidos | C30: 400 | D30: 350 | E30: 400 | F30: 300 | G30: 400 | O30: =IFERROR(AVERAGE(Sumokėta[[#This Row],[3stulpelis]:[14stulpelis]]),"") -> 370
A31: Rezervas ir (arba) sąlyginis deponavimas | C31: 300 | D31: 300 | E31: 300 | F31: 300 | G31: 300 | O31: =IFERROR(AVERAGE(Sumokėta[[#This Row],[3stulpelis]:[14stulpelis]]),"") -> 300
A32: Nuosavybės atšaukimas | C32: 70 | D32: 70 | E32: 70 | F32: 70 | G32: 70 | O32: =IFERROR(AVERAGE(Sumokėta[[#This Row],[3stulpelis]:[14stulpelis]]),"") -> 70
A33: Bendroji sumokėtų grynųjų pinigų suma | C33: =SUBTOTAL(109,Sumokėta[3stulpelis]) -> 21,800 | D33: =SUBTOTAL(109,Sumokėta[4stulpelis]) -> 27,562 | E33: =SUBTOTAL(109,Sumokėta[5stulpelis]) -> 21,742 | F33: =SUBTOTAL(109,Sumokėta[6stulpelis]) -> 24,044 | G33: =SUBTOTAL(109,Sumokėta[7stulpelis]) -> 24,787 | H33: =SUBTOTAL(109,Sumokėta[8stulpelis]) -> 0 | I33: =SUBTOTAL(109,Sumokėta[9stulpelis]) -> 0 | J33: =SUBTOTAL(109,Sumokėta[10stulpelis]) -> 0 | K33: =SUBTOTAL(109,Sumokėta[11stulpelis]) -> 0 | L33: =SUBTOTAL(109,Sumokėta[12stulpelis]) -> 0 | M33: =SUBTOTAL(109,Sumokėta[13stulpelis]) -> 0 | N33: =SUBTOTAL(109,Sumokėta[14stulpelis]) -> 0 | O33: =IFERROR(AVERAGE(Sumokėta[[#Totals],[3stulpelis]:[14stulpelis]]),"") -> 9,995
A35: Esminiai veiklos duomenys (informacija apie ne grynųjų pinigų srautus)
A36: Pardavimo apimtis (doleriais) | B36: 2,000 | C36: 2,500 | D36: 2,257 | E36: 2,387 | F36: 2,664 | G36: 2,324 | O36: =IFERROR(AVERAGE(EsminiaiVeiklosDuomenys[[#This Row],[2stulpelis]:[14stulpelis]]),"") -> 2,355
A37: Gautinos sumos | B37: 1,500 | C37: 500 | D37: 886 | E37: 1,035 | F37: 1,775 | G37: 839 | O37: =IFERROR(AVERAGE(EsminiaiVeiklosDuomenys[[#This Row],[2stulpelis]:[14stulpelis]]),"") -> 1,089
A38: Blogos skolos (mėnesio pabaigoje) | B38: 300 | C38: 200 | D38: 225 | E38: 269 | F38: 448 | G38: 359 | O38: =IFERROR(AVERAGE(EsminiaiVeiklosDuomenys[[#This Row],[2stulpelis]:[14stulpelis]]),"") -> 300
A39: Turimas inventorius (mėnesio pabaigoje) | O39: =IFERROR(AVERAGE(EsminiaiVeiklosDuomenys[[#This Row],[2stulpelis]:[14stulpelis]]),"") -> 
A40: Mokėtinos sumos (mėnesio pabaigoje) | O40: =IFERROR(AVERAGE(EsminiaiVeiklosDuomenys[[#This Row],[2stulpelis]:[14stulpelis]]),"") -> 
A41: Nusidėvėjimas | O41: =IFERROR(AVERAGE(EsminiaiVeiklosDuomenys[[#This Row],[2stulpelis]:[14stulpelis]]),"") -> 

Sheet Grynųjų pinigų srauto santrauka
J26: Duomenų taškai: | K26: 5
C27: (Vilkite viršuje esantį slankiklį, kad pakeistumėte diagramoje pateikiamus suminius duomenų taškus.)
